fUSD/lending_fUSD_20260118
["ID","MTS","AMOUNT","RATE_DAILY","PERIOD"]
[402531562,1768699838075,-1050.0,0.00016,4]
[402531563,1768699838086,-3256.97143506,0.00016,4]
[402531564,1768699838098,-1398.18466805,0.00016,4]
[402531565,1768699838110,-3349.6,0.00016,4]
[402531566,1768699838122,-4867.7,0.00016,4]
[402531567,1768699838145,-2670.00003337,0.00016,4]
[402531727,1768699839971,-862.91952571,0.00016,4]
[402531729,1768699839981,-150.0,0.00016003,2]
[402531731,1768699839991,-150.0,0.00016003,2]
[402531733,1768699840001,-150.0,0.00016003,2]
[402531735,1768699840010,-197.24170472,0.00016003,2]
[402531737,1768699840020,-224.89751926,0.00016003,2]
[402531739,1768699840029,-150.0,0.00016003,2]
[402531741,1768699840038,-129.36566429,0.00016003,2]
[402531744,1768699840054,-91.35127117,0.00016003,2]
[402531746,1768699840063,-150.0,0.00016003,2]
[402531748,1768699840072,-150.0,0.00016003,2]
[402531750,1768699840081,-150.0,0.00016003,2]
[402531752,1768699840090,-150.0,0.00016003,2]
[402531753,1768699840099,-182.69712699,0.00016003,2]
[402531754,1768699840108,-185.25753319,0.00016003,2]
[402531755,1768699840118,-150.0,0.00016003,2]
[402531756,1768699840127,-38.53357109,0.00016003,2]
[402531757,1768699840138,-111.46642891,0.00016003,2]
[402531758,1768699840148,-150.0,0.00016003,2]
[402531759,1768699840157,-150.0,0.00016003,2]
[402531760,1768699840166,-274.22409833,0.0001602,2]
[402531761,1768699840175,-174.61919141,0.0001602,2]
[402531762,1768699840185,-4001.0,0.0001602,2]
[402531763,1768699840195,-322.6107,0.0001602,2]
[402531764,1768699840204,-574.12855637,0.0001602,2]
[402531765,1768699840213,-576.8388723,0.0001602,2]
[402531766,1768699840223,-620.0,0.0001602,2]
[402531767,1768699840233,-504.66922978,0.00016021,2]
[402531768,1768699840244,-500.0,0.0001604,2]
[402531769,1768699840253,-428.36816863,0.0001604,2]
[402531770,1768699840263,-150.0,0.00016042,2]
[402531771,1768699840272,-87.52218652,0.0001605,2]
[402531772,1768699840284,-88.38195911,0.0001605,2]
[402531773,1768699840294,-305.1593131,0.0001605,2]
[402531774,1768699840303,-171.94528389,0.0001605,2]
[402531775,1768699840312,-8381.73223863,0.00016051,2]
[402531776,1768699840323,-6735.77386317,0.00016051,2]
[402531777,1768699840332,-150.0,0.00016077,2]
[402531778,1768699840342,-158.37,0.00016078,2]
[402531779,1768699840351,-150.0,0.00016082,2]
[402531780,1768699840362,-150.0,0.00016107,2]
[402531781,1768699840371,-150.0,0.00016121,2]
[402531782,1768699840381,-150.0,0.00016121,2]
[402531784,1768699840390,-150.0,0.0001614,2]
[402531785,1768699840399,-150.0,0.0001614,2]
[402531787,1768699840409,-999.64000145,0.0001614,2]
[402531789,1768699840421,-9077.54866152,0.0001614,2]
[402531791,1768699840432,-8943.84023489,0.0001614,2]
[402531796,1768699840464,-845.55834387,0.0001614,2]
[402531798,1768699840475,-84047.12661578,0.0001614,2]
[402531800,1768699840486,-3837.08403963,0.0001614,2]
[402531802,1768699840496,-639.48310484,0.0001614,2]
[402531804,1768699840507,-353.47176662,0.0001614,2]
[402531806,1768699840518,-360.42425931,0.0001614,2]
[402531809,1768699840541,-500.0,0.0001614,2]
[402531811,1768699840552,-4317.80127815,0.0001614,2]
[402531814,1768699840567,-7698.69731224,0.0001614,2]
[402531816,1768699840578,-82309.80095801,0.0001614,2]
[402531819,1768699840602,-2310.24529464,0.0001614,2]
[402531822,1768699840618,-904.09092954,0.0001614,2]
[402531826,1768699840656,-211123.17229951,0.0001614,2]
[402531828,1768699840665,-150.0,0.00016151,2]
[402531830,1768699840674,-150.0,0.00016161,2]
[402531832,1768699840684,-150.0,0.00016164,2]
[402531834,1768699840693,-150.0,0.000162,2]
[402531837,1768699840702,-150.0,0.000162,2]
[402531840,1768699840712,-150.0,0.00016212,2]
[402531843,1768699840722,-150.0,0.00016225,2]
[402531846,1768699840731,-250.0,0.00016226,2]
[402531849,1768699840740,-600.0,0.00016226,2]
[402531852,1768699840750,-250.0,0.00016226,2]
[402531855,1768699840759,-246.23213518,0.00016226,2]
[402531858,1768699840769,-5379.74699023,0.00016239,2]
[402531861,1768699840778,-150.0,0.0001624,2]
[402531864,1768699840787,-150.0,0.0001624,2]
[402531867,1768699840797,-150.63291367,0.00016256,2]
[402531871,1768699840806,-15117.50610174,0.00016256,2]
[402531873,1768699840815,-150.0,0.00016276,2]
[402531876,1768699840824,-150.0,0.00016276,2]
[402531880,1768699840834,-150.0,0.00016279,2]
[402531882,1768699840843,-150.0,0.00016299,2]
[402531885,1768699840852,-162.0,0.000163,2]
[402531888,1768699840862,-162.65,0.000163,2]
[402531892,1768699840874,-166.66,0.00016304,2]
[402531896,1768699840884,-150.0,0.00016317,2]
[402531898,1768699840894,-150.0,0.00016319,2]
[402531901,1768699840903,-150.0,0.00016326,2]
[402531904,1768699840913,-500.0,0.00016337,2]
[402531907,1768699840922,-406.53370807,0.00016337,2]
[402531910,1768699840932,-500.0,0.00016337,2]
[402531913,1768699840941,-500.0,0.00016337,2]
[402531916,1768699840951,-500.0,0.00016337,2]
[402531919,1768699840960,-500.0,0.00016337,2]
[402531922,1768699840972,-181.14665602,0.00016337,2]
[402531924,1768699840981,-327.16418321,0.00016338,2]
[402531926,1768699840990,-1000.0,0.00016339,2]
[402531929,1768699840999,-500.0,0.00016356,2]
[402531931,1768699841008,-800.0,0.00016356,2]
[402531934,1768699841018,-500.0,0.00016356,2]
[402531936,1768699841028,-150.0,0.00016358,2]
[402531938,1768699841037,-150.0,0.00016358,2]
[402531940,1768699841046,-150.0,0.00016358,2]
[402531942,1768699841056,-150.0,0.00016373,2]
[402531944,1768699841065,-150.0,0.00016398,2]
[402531946,1768699841074,-150.0,0.00016398,2]
[402531948,1768699841083,-5379.7469902,0.00016402,2]
[402531950,1768699841092,-150.0,0.00016413,2]
[402531952,1768699841102,-150.0,0.00016413,2]
[402531954,1768699841111,-150.0,0.00016421,2]
[402531956,1768699841119,-500.0,0.00016437,2]
[402531958,1768699841128,-150.0,0.00016437,2]
[402531960,1768699841138,-500.0,0.00016438,2]
[402531962,1768699841147,-6750.0471688,0.00016438,2]
[402531964,1768699841156,-1000.0,0.00016438,2]
[402531966,1768699841165,-500.0,0.00016438,2]
[402531968,1768699841174,-500.0,0.00016438,2]
[402531970,1768699841183,-500.0,0.00016438,2]
[402531972,1768699841193,-500.0,0.00016438,2]
[402531974,1768699841202,-500.0,0.00016438,2]
[402531976,1768699841211,-500.0,0.00016438,2]
[402531978,1768699841220,-500.0,0.00016438,2]
[402531980,1768699841229,-500.0,0.00016438,2]
[402531982,1768699841238,-500.0,0.00016438,2]
[402531984,1768699841247,-500.0,0.00016438,2]
[402532015,1768699841256,-500.0,0.00016438,2]
[402532017,1768699841547,-500.0,0.00016438,2]
[402532019,1768699841556,-515.79,0.00016438,2]
[402532021,1768699841565,-500.0,0.00016438,2]
[402532023,1768699841575,-500.0,0.00016438,2]
[402532025,1768699841584,-500.0,0.00016438,2]
[402532027,1768699841594,-500.0,0.00016438,2]
[402532029,1768699841603,-500.0,0.00016438,2]
[402532031,1768699841612,-500.0,0.00016438,2]
[402532033,1768699841621,-500.0,0.00016438,2]
[402532035,1768699841630,-514.31,0.00016438,2]
[402532037,1768699841642,-500.0,0.00016438,2]
[402532039,1768699841651,-500.0,0.00016438,2]
[402532041,1768699841660,-544.83500256,0.00016438,2]
[402532043,1768699841669,-801.52,0.00016438,2]
[402532045,1768699841679,-500.0,0.00016438,2]
[402532047,1768699841688,-500.0,0.00016438,2]
[402532049,1768699841697,-500.0,0.00016438,2]
[402532051,1768699841706,-500.0,0.00016438,2]
[402532053,1768699841715,-500.0,0.00016438,2]
[402532055,1768699841724,-500.0,0.00016438,2]
[402532057,1768699841733,-500.0,0.00016438,2]
[402532059,1768699841742,-517.88158924,0.00016438,2]
[402532061,1768699841751,-500.0,0.00016438,2]
[402532063,1768699841761,-500.0,0.00016438,2]
[402532065,1768699841770,-500.0,0.00016438,2]
[402532067,1768699841779,-500.0,0.00016438,2]
[402532069,1768699841789,-500.0,0.00016438,2]
[402532071,1768699841798,-500.0,0.00016438,2]
[402532073,1768699841806,-500.0,0.00016438,2]
[402532075,1768699841815,-500.0,0.00016438,2]
[402532077,1768699841825,-500.0,0.00016438,2]
[402532079,1768699841833,-500.0,0.00016438,2]
[402532081,1768699841845,-500.0,0.00016438,2]
[402532083,1768699841854,-413.20860827,0.00016438,2]
[402532085,1768699841865,-500.0,0.00016438,2]
[402532086,1768699841875,-500.0,0.00016438,2]
[402532088,1768699841887,-500.0,0.00016438,2]
[402532091,1768699841899,-500.0,0.00016438,2]
[402532092,1768699841910,-500.0,0.00016438,2]
[402532095,1768699841921,-500.0,0.00016438,2]
[402532097,1768699841932,-666.17,0.00016438,2]
[402532099,1768699841942,-500.0,0.00016438,2]
[402532100,1768699841953,-500.0,0.00016438,2]
[402532102,1768699841966,-500.0,0.00016438,2]
[402532104,1768699841980,-500.0,0.00016438,2]
[402532106,1768699841991,-463.92628394,0.00016438,2]
[402532108,1768699842000,-500.0,0.00016438,2]
[402532110,1768699842014,-1194.83,0.00016438,2]
[402532112,1768699842027,-500.0,0.00016438,2]
[402532115,1768699842039,-300.0,0.00016438,2]
[402532117,1768699842049,-500.0,0.00016438,2]
[402532119,1768699842059,-173.85429658,0.00016438,2]
[402532120,1768699842069,-500.0,0.00016438,2]
[402532123,1768699842079,-500.0,0.00016438,2]
[402532124,1768699842090,-500.0,0.00016438,2]
[402532126,1768699842099,-505.30867579,0.00016438,2]
[402532128,1768699842110,-298.16333474,0.00016438,2]
[402532130,1768699842123,-500.0,0.00016438,2]
[402532132,1768699842136,-500.0,0.00016438,2]
[402532134,1768699842147,-500.0,0.00016438,2]
[402532136,1768699842160,-500.0,0.00016438,2]
[402532138,1768699842172,-500.0,0.00016438,2]
[402532140,1768699842186,-500.0,0.00016438,2]
[402532143,1768699842197,-500.0,0.00016438,2]
[402532145,1768699842208,-500.0,0.00016438,2]
[402532147,1768699842218,-587.18,0.00016438,2]
[402532148,1768699842230,-393.75304264,0.00016438,2]
[402532150,1768699842242,-500.0,0.00016438,2]
[402532153,1768699842255,-500.0,0.00016438,2]
[402532155,1768699842268,-500.0,0.00016438,2]
[402532157,1768699842281,-500.0,0.00016438,2]
[402532158,1768699842290,-500.0,0.00016438,2]
[402532160,1768699842301,-500.0,0.00016438,2]
[402532162,1768699842311,-500.0,0.00016438,2]
[402532165,1768699842322,-500.0,0.00016438,2]
[402532166,1768699842332,-153.82137076,0.00016438,2]
[402532169,1768699842342,-537.45,0.00016438,2]
[402532170,1768699842353,-500.0,0.00016438,2]
[402532172,1768699842362,-500.0,0.00016438,2]
[402532175,1768699842373,-176.75193127,0.00016438,2]
[402532177,1768699842383,-505.74651264,0.00016438,2]
[402532179,1768699842393,-500.0,0.00016438,2]
[402532180,1768699842404,-500.0,0.00016438,2]
[402532182,1768699842416,-500.0,0.00016438,2]
[402532184,1768699842428,-500.0,0.00016438,2]
[402532186,1768699842440,-500.0,0.00016438,2]
[402532189,1768699842452,-500.0,0.00016438,2]
[402532191,1768699842462,-500.0,0.00016438,2]
[402532193,1768699842473,-500.0,0.00016438,2]
[402532194,1768699842484,-500.0,0.00016438,2]
[402532196,1768699842494,-500.0,0.00016438,2]
[402532198,1768699842504,-500.0,0.00016438,2]
[402532200,1768699842513,-500.0,0.00016438,2]
[402532202,1768699842550,-678.67,0.00016438,2]
[402532205,1768699842562,-500.0,0.00016438,2]
[402532206,1768699842571,-500.0,0.00016438,2]
[402532209,1768699842581,-500.0,0.00016438,2]
[402532211,1768699842594,-500.0,0.00016438,2]
[402532212,1768699842604,-500.0,0.00016438,2]
[402532214,1768699842614,-500.0,0.00016438,2]
[402532216,1768699842625,-833.4,0.00016438,2]
[402532219,1768699842636,-500.0,0.00016438,2]
[402532221,1768699842650,-500.0,0.00016438,2]
[402532223,1768699842661,-500.0,0.00016438,2]
[402532226,1768699842671,-500.0,0.00016438,2]
[402532229,1768699842683,-500.0,0.00016438,2]
[402532231,1768699842692,-500.0,0.00016438,2]
[402532233,1768699842702,-500.0,0.00016438,2]
[402532235,1768699842713,-537.1680559,0.00016438,2]
[402532237,1768699842726,-680.44,0.00016438,2]
[402532240,1768699842736,-500.0,0.00016438,2]
[402532241,1768699842745,-500.0,0.00016438,2]
[402532244,1768699842755,-500.0,0.00016438,2]
[402532245,1768699842768,-500.0,0.00016438,2]
[402532247,1768699842780,-500.0,0.00016438,2]
[402532250,1768699842792,-500.0,0.00016438,2]
[402532252,1768699842804,-640.93,0.00016438,2]
[402532253,1768699842816,-500.0,0.00016438,2]
[402532255,1768699842828,-580.18,0.00016438,2]
[402532257,1768699842837,-620.21,0.00016438,2]
[402532259,1768699842848,-500.0,0.00016438,2]
[402532261,1768699842858,-500.0,0.00016438,2]
[402532263,1768699842869,-500.0,0.00016438,2]
[402532265,1768699842880,-500.0,0.00016438,2]
[402532267,1768699842891,-500.0,0.00016438,2]
[402532269,1768699842902,-500.0,0.00016438,2]
[402532271,1768699842915,-500.0,0.00016438,2]
[402532274,1768699842928,-500.0,0.00016438,2]
[402532276,1768699842938,-500.0,0.00016438,2]
[402532277,1768699842948,-579.51,0.00016438,2]
[402532280,1768699842959,-500.0,0.00016438,2]
[402532282,1768699842971,-500.0,0.00016438,2]
[402532284,1768699842982,-500.0,0.00016438,2]
[402532285,1768699842997,-500.0,0.00016438,2]
[402532286,1768699843008,-500.0,0.00016438,2]
[402532287,1768699843018,-500.0,0.00016438,2]
[402532288,1768699843029,-500.0,0.00016438,2]
[402532290,1768699843042,-500.0,0.00016438,2]
[402532292,1768699843053,-500.0,0.00016438,2]
[402532295,1768699843065,-500.0,0.00016438,2]
[402532297,1768699843074,-1056.2,0.00016438,2]
[402532299,1768699843084,-730.65,0.00016438,2]
[402532301,1768699843095,-500.0,0.00016438,2]
[402532303,1768699843105,-500.0,0.00016438,2]
[402532305,1768699843116,-525.2,0.00016438,2]
[402532307,1768699843126,-500.0,0.00016438,2]
[402532309,1768699843136,-500.0,0.00016438,2]
[402532311,1768699843149,-500.0,0.00016438,2]
[402532313,1768699843161,-500.0,0.00016438,2]
[402532315,1768699843171,-500.0,0.00016438,2]
[402532317,1768699843183,-500.0,0.00016438,2]
[402532319,1768699843193,-500.0,0.00016438,2]
[402532322,1768699843203,-500.0,0.00016438,2]
[402532323,1768699843213,-941.42,0.00016438,2]
[402532325,1768699843224,-500.0,0.00016438,2]
[402532327,1768699843234,-500.0,0.00016438,2]
[402532329,1768699843243,-152.03400088,0.00016438,2]
[402532331,1768699843254,-500.0,0.00016438,2]
[402532334,1768699843265,-500.0,0.00016438,2]
[402532336,1768699843274,-500.0,0.00016438,2]
[402532338,1768699843283,-500.0,0.00016438,2]
[402532340,1768699843292,-500.0,0.00016438,2]
[402532342,1768699843301,-518.16,0.00016438,2]
[402532344,1768699843311,-500.0,0.00016438,2]
[402532346,1768699843319,-500.0,0.00016438,2]
[402532348,1768699843328,-523.41,0.00016438,2]
[402532350,1768699843337,-500.0,0.00016438,2]
[402532352,1768699843346,-500.0,0.00016438,2]
[402532353,1768699843355,-562.99,0.00016438,2]
[402532355,1768699843364,-500.0,0.00016438,2]
[402532357,1768699843374,-500.0,0.00016438,2]
[402532359,1768699843383,-500.0,0.00016438,2]
[402532361,1768699843392,-499.03727827,0.00016438,2]
[402532363,1768699843400,-627.78,0.00016438,2]
[402532365,1768699843411,-604.86,0.00016438,2]
[402532367,1768699843420,-502.42,0.00016438,2]
[402532369,1768699843430,-500.0,0.00016438,2]
[402532370,1768699843441,-432.62965931,0.00016438,2]
[402532371,1768699843450,-500.0,0.00016438,2]
[402532372,1768699843459,-500.0,0.00016438,2]
[402532373,1768699843469,-587.03,0.00016438,2]
[402532374,1768699843479,-500.0,0.00016438,2]
[402532375,1768699843488,-500.0,0.00016438,2]
[402532376,1768699843498,-500.0,0.00016438,2]
[402532377,1768699843508,-500.0,0.00016438,2]
[402532378,1768699843517,-500.0,0.00016438,2]
[402532379,1768699843525,-500.0,0.00016438,2]
[402532380,1768699843535,-500.0,0.00016438,2]
[402532381,1768699843544,-526.17,0.00016438,2]
[402532382,1768699843554,-500.0,0.00016438,2]
[402532383,1768699843564,-500.0,0.00016438,2]
[402532384,1768699843573,-500.0,0.00016438,2]
[402532385,1768699843582,-500.0,0.00016438,2]
[402532386,1768699843591,-500.0,0.00016438,2]
[402532387,1768699843600,-500.0,0.00016438,2]
[402532388,1768699843610,-500.0,0.00016438,2]
[402532389,1768699843619,-596.47,0.00016438,2]
[402532390,1768699843629,-500.0,0.00016438,2]
[402532391,1768699843639,-500.0,0.00016438,2]
[402532392,1768699843650,-501.76,0.00016438,2]
[402532393,1768699843660,-781.9,0.00016438,2]
[402532394,1768699843669,-500.0,0.00016438,2]
[402532395,1768699843679,-500.0,0.00016438,2]
[402532396,1768699843687,-500.0,0.00016438,2]
[402532397,1768699843697,-500.0,0.00016438,2]
[402532398,1768699843706,-500.0,0.00016438,2]
[402532400,1768699843715,-500.0,0.00016438,2]
[402532401,1768699843725,-500.0,0.00016438,2]
[402532402,1768699843734,-500.0,0.00016438,2]
[402532403,1768699843743,-500.0,0.00016438,2]
[402532404,1768699843753,-500.0,0.00016438,2]
[402532405,1768699843762,-500.0,0.00016438,2]
[402532406,1768699843771,-500.0,0.00016438,2]
[402532407,1768699843780,-505.28716417,0.00016438,2]
[402532408,1768699843789,-500.0,0.00016438,2]
[402532409,1768699843798,-721.58,0.00016438,2]
[402532410,1768699843807,-500.0,0.00016438,2]
[402532411,1768699843816,-500.0,0.00016438,2]
[402532412,1768699843825,-500.0,0.00016438,2]
[402532414,1768699843834,-500.0,0.00016438,2]
[402532415,1768699843844,-500.0,0.00016438,2]
[402532416,1768699843853,-500.0,0.00016438,2]
[402532417,1768699843861,-500.0,0.00016438,2]
[402532419,1768699843871,-500.0,0.00016438,2]
[402532420,1768699843879,-500.0,0.00016438,2]
[402532422,1768699843889,-500.0,0.00016438,2]
[402532423,1768699843898,-500.0,0.00016438,2]
[402532424,1768699843907,-500.0,0.00016438,2]
[402532425,1768699843918,-500.0,0.00016438,2]
[402532426,1768699843927,-500.0,0.00016438,2]
[402532427,1768699843936,-500.0,0.00016438,2]
[402532428,1768699843945,-500.0,0.00016438,2]
[402532429,1768699843955,-500.0,0.00016438,2]
[402532430,1768699843964,-500.0,0.00016438,2]
[402532431,1768699843976,-500.0,0.00016438,2]
[402532432,1768699843985,-500.0,0.00016438,2]
[402532433,1768699843995,-500.0,0.00016438,2]
[402532434,1768699844006,-500.0,0.00016438,2]
[402532435,1768699844016,-500.0,0.00016438,2]
[402532436,1768699844025,-500.0,0.00016438,2]
[402532437,1768699844035,-500.0,0.00016438,2]
[402532438,1768699844044,-500.0,0.00016438,2]
[402532439,1768699844052,-500.0,0.00016438,2]
[402532440,1768699844062,-500.0,0.00016438,2]
[402532441,1768699844072,-509.19,0.00016438,2]
[402532442,1768699844081,-500.0,0.00016438,2]
[402532443,1768699844092,-500.0,0.00016438,2]
[402532444,1768699844101,-500.0,0.00016438,2]
[402532445,1768699844111,-500.0,0.00016438,2]
[402532446,1768699844120,-500.0,0.00016438,2]
[402532447,1768699844129,-500.0,0.00016438,2]
[402532448,1768699844140,-509.69231332,0.00016438,2]
[402532449,1768699844150,-500.0,0.00016438,2]
[402532450,1768699844159,-500.0,0.00016438,2]
[402532451,1768699844169,-536.71,0.00016438,2]
[402532452,1768699844179,-1000.0,0.00016438,5]
[402532453,1768699844188,-500.0,0.00016438,2]
[402532455,1768699844197,-500.0,0.00016438,2]
[402532457,1768699844207,-500.0,0.00016438,2]
[402532459,1768699844216,-526.48,0.00016438,2]
[402532461,1768699844225,-500.0,0.00016438,2]
[402532463,1768699844235,-500.0,0.00016438,2]
[402532465,1768699844244,-500.0,0.00016438,2]
[402532466,1768699844253,-500.0,0.00016438,2]
[402532467,1768699844262,-754.9,0.00016438,2]
[402532468,1768699844272,-500.0,0.00016438,2]
[402532469,1768699844282,-500.0,0.00016438,2]
[402532470,1768699844291,-500.0,0.00016438,2]
[402532471,1768699844301,-273.6090344,0.00016438,2]
[402532472,1768699844310,-500.0,0.00016438,2]
[402532473,1768699844320,-500.0,0.00016438,2]
[402532474,1768699844329,-500.0,0.00016438,2]
[402532475,1768699844339,-500.0,0.00016438,2]
[402532476,1768699844349,-500.0,0.00016438,2]
[402532477,1768699844358,-500.0,0.00016438,2]
[402532478,1768699844367,-500.0,0.00016438,2]
[402532479,1768699844377,-500.0,0.00016438,2]
[402532480,1768699844387,-542.01,0.00016438,2]
[402532481,1768699844396,-529.01,0.00016438,2]
[402532482,1768699844406,-500.0,0.00016438,2]
[402532483,1768699844415,-500.0,0.00016438,2]
[402532484,1768699844424,-500.0,0.00016438,2]
[402532485,1768699844433,-500.0,0.00016438,2]
[402532486,1768699844443,-500.0,0.00016438,2]
[402532487,1768699844452,-500.0,0.00016438,2]
[402532488,1768699844462,-500.0,0.00016438,2]
[402532489,1768699844472,-500.0,0.00016438,2]
[402532490,1768699844481,-500.0,0.00016438,2]
[402532491,1768699844490,-500.0,0.00016438,2]
[402532492,1768699844499,-500.0,0.00016438,2]
[402532493,1768699844509,-500.0,0.00016438,2]
[402532494,1768699844517,-500.0,0.00016438,2]
[402532495,1768699844527,-500.0,0.00016438,2]
[402532496,1768699844536,-500.0,0.00016438,2]
[402532497,1768699844545,-500.0,0.00016438,2]
[402532499,1768699844554,-500.0,0.00016438,2]
[402532500,1768699844563,-625.7,0.00016438,2]
[402532501,1768699844573,-500.0,0.00016438,2]
[402532502,1768699844582,-500.0,0.00016438,2]
[402532503,1768699844591,-500.0,0.00016438,2]
[402532505,1768699844600,-500.0,0.00016438,2]
[402532507,1768699844609,-500.0,0.00016438,2]
[402532509,1768699844618,-500.0,0.00016438,2]
[402532511,1768699844627,-500.0,0.00016438,2]
[402532513,1768699844636,-500.0,0.00016438,2]
[402532514,1768699844649,-500.0,0.00016438,2]
[402532515,1768699844658,-500.0,0.00016438,2]
[402532516,1768699844667,-500.0,0.00016438,2]
[402532517,1768699844676,-500.0,0.00016438,2]
[402532518,1768699844686,-500.0,0.00016438,2]
[402532519,1768699844695,-518.52,0.00016438,2]
[402532520,1768699844704,-500.0,0.00016438,2]
[402532521,1768699844714,-500.0,0.00016438,2]
[402532522,1768699844723,-653.61,0.00016438,2]
[402532523,1768699844731,-500.0,0.00016438,2]
[402532524,1768699844739,-500.0,0.00016438,2]
[402532525,1768699844747,-500.0,0.00016438,2]
[402532526,1768699844755,-514.92971777,0.00016438,2]
[402532527,1768699844764,-500.0,0.00016438,2]
[402532528,1768699844773,-500.0,0.00016438,2]
[402532529,1768699844782,-500.0,0.00016438,2]
[402532530,1768699844791,-500.0,0.00016438,2]
[402532531,1768699844800,-1068.91,0.00016438,2]
[402532532,1768699844810,-500.0,0.00016438,2]
[402532533,1768699844819,-500.0,0.00016438,2]
[402532534,1768699844829,-500.0,0.00016438,2]
[402532535,1768699844839,-500.0,0.00016438,2]
[402532536,1768699844848,-500.0,0.00016438,2]
[402532537,1768699844857,-447.37401517,0.00016438,2]
[402532538,1768699844866,-583.55,0.00016438,2]
[402532539,1768699844876,-500.0,0.00016438,2]
[402532540,1768699844885,-500.0,0.00016438,2]
[402532541,1768699844895,-500.0,0.00016438,2]
[402532542,1768699844904,-500.0,0.00016438,2]
[402532543,1768699844913,-500.0,0.00016438,2]
[402532544,1768699844923,-771.11,0.00016438,2]
[402532545,1768699844933,-500.0,0.00016438,2]
[402532546,1768699844942,-500.0,0.00016438,2]
[402532547,1768699844951,-500.0,0.00016438,2]
[402532548,1768699844961,-500.0,0.00016438,2]
[402532549,1768699844970,-500.0,0.00016438,2]
[402532550,1768699844979,-500.0,0.00016438,2]
[402532551,1768699844989,-500.0,0.00016438,2]
[402532552,1768699844998,-500.0,0.00016438,2]
[402532553,1768699845008,-500.0,0.00016438,2]
[402532554,1768699845017,-500.0,0.00016438,2]
[402532555,1768699845026,-500.0,0.00016438,2]
[402532556,1768699845036,-500.0,0.00016438,2]
[402532557,1768699845045,-500.0,0.00016438,2]
[402532558,1768699845055,-500.0,0.00016438,2]
[402532559,1768699845064,-285.36903742,0.00016438,2]
[402532560,1768699845073,-500.0,0.00016438,2]
[402532561,1768699845083,-515.19693153,0.00016438,2]
[402532562,1768699845093,-500.0,0.00016438,2]
[402532563,1768699845102,-534.01,0.00016438,2]
[402532564,1768699845111,-779.62,0.00016438,2]
[402532565,1768699845121,-500.0,0.00016438,2]
[402532566,1768699845132,-500.0,0.00016438,2]
[402532567,1768699845141,-500.0,0.00016438,2]
[402532568,1768699845150,-500.0,0.00016438,2]
[402532569,1768699845159,-500.0,0.00016438,2]
[402532570,1768699845168,-500.0,0.00016438,2]
[402532571,1768699845177,-556.47,0.00016438,2]
[402532572,1768699845186,-500.0,0.00016438,2]
[402532573,1768699845196,-500.0,0.00016438,2]
[402532574,1768699845205,-500.0,0.00016438,2]
[402532575,1768699845215,-500.0,0.00016438,2]
[402532576,1768699845224,-500.0,0.00016438,2]
[402532577,1768699845234,-500.0,0.00016438,2]